bitfinex/quotes_ETHUSD_20220106
["timestamp","ask_amount","ask_price","bid_price","bid_amount"]
[1641463612981,3.40046487,3324.5,3323.9,17.366965]
[1641463612982,3.40046487,3324.5,3324.0,1.03410514]
[1641463613161,2.13223657,3324.6,3324.0,1.03410514]
[1641463613363,2.13223657,3324.6,3324.5,0.78352114]
[1641463614362,2.13223657,3324.6,3324.5,0.03161114]
[1641463614561,2.13223657,3324.6,3324.3,0.78356798]
[1641463614761,2.13223657,3324.6,3324.3,1.78356798]
[1641463614964,2.13223657,3324.6,3324.3,0.75203]
[1641463615562,2.13223657,3324.6,3324.3,0.78657385]
[1641463615863,2.13223657,3324.6,3324.3,0.75203]
[1641463616518,2.13223657,3324.6,3324.1,0.00170527]
[1641463616913,2.13223657,3324.6,3323.8,0.00341054]
[1641463617316,2.75176121,3324.5,3323.8,0.00341054]
[1641463617715,2.75176121,3324.5,3323.8,2.054e-05]
[1641463617919,2.75176121,3324.5,3323.7,1.49886054]
[1641463618116,0.00341054,3324.4,3323.7,1.49886054]
[1641463618321,0.00341054,3324.4,3323.5,0.13819997]
[1641463618518,0.00284212,3324.3,3323.5,0.13819997]
[1641463618717,0.00284212,3324.3,3323.6,0.00113684]
[1641463618922,0.00284212,3324.3,3323.0,4.08309672]
[1641463618923,6.3522737,3324.2,3323.2,1.50448]
[1641463619123,1.93528894,3324.1,3323.0,4.83547672]
[1641463619322,1.93813105,3324.1,3323.5,2.04101555]
[1641463619520,0.00227369,3324.0,3323.5,2.04101555]
[1641463619722,0.75466369,3324.0,3323.5,2.04101555]
[1641463619975,0.75466369,3324.0,3323.0,4.08309672]
[1641463619976,2.04101555,3323.5,3323.0,6.48309672]
[1641463620277,3.54624555,3323.5,3323.1,0.00113685]
[1641463620473,3.54624555,3323.5,3322.6,4.05602445]
[1641463620474,15.20367974,3323.4,3322.6,4.05602445]
[1641463620671,15.20367974,3323.4,3322.7,0.00227369]
[1641463620672,0.01261945,3323.2,3322.7,0.00227369]
[1641463620872,0.76526475,3323.2,3322.7,0.00227369]
[1641463621274,1.95148021,3322.8,3322.7,0.00227369]
[1641463621485,0.00113685,3323.3,3322.7,1.4237656]
[1641463621486,1.44606559,3323.3,3322.7,1.4237656]
[1641463621674,1.44606559,3323.3,3322.7,1.46032796]
[1641463621876,1.44606559,3323.3,3322.8,0.00170527]
[1641463622073,1.44606559,3323.3,3323.0,0.75226]
[1641463622272,1.44606559,3323.3,3323.0,0.78366962]
[1641463622473,1.44606559,3323.3,3323.0,2.28817962]
[1641463622673,1.44606559,3323.3,3323.1,0.03877138]
[1641463622873,2.19801874,3323.2,3323.1,0.03877138]
[1641463623075,0.00113685,3323.3,3323.1,4.1564459]
[1641463623276,0.00113685,3323.3,3323.2,13.85293157]
[1641463623714,1.44492874,3324.2,3324.0,1.41181352]
[1641463623912,4.79736929,3324.7,3324.0,2.16385352]
[1641463624117,0.00454738,3324.1,3324.0,2.16385352]
[1641463624518,4.79736929,3324.7,3324.4,1.50395]
[1641463624914,0.00284212,3324.6,3324.4,1.50395]
[1641463625316,1.44492874,3324.8,3324.4,1.50395]
[1641463625317,0.0022737,3324.5,3324.4,1.50395]
[1641463625722,1.44492874,3324.8,3324.4,0.361]
[1641463626219,1.44492874,3325.2,3324.6,9.14758345]
[1641463626417,1.44492874,3325.2,3325.1,0.7518]
[1641463626620,3.11708965,3325.2,3325.1,0.7518]
[1641463627120,4.28553133,3325.9,3325.1,1.98536766]
[1641463627384,4.28553133,3325.9,3325.1,1.23356766]
[1641463627581,0.00341055,3325.3,3325.1,1.23356766]
[1641463627980,0.00284212,3325.2,3325.1,1.23356766]
[1641463628183,2.84060259,3325.9,3325.2,13.05]
[1641463628381,2.84060259,3325.9,3325.8,1.18760433]
[1641463628584,2.84060259,3325.9,3325.8,1.21917009]
[1641463629582,2.84060259,3325.9,3325.8,2.97071009]
[1641463630183,2.84060259,3325.9,3325.8,1.97071009]
[1641463630385,2.84060259,3325.9,3325.8,0.78310576]
[1641463630683,2.84060259,3325.9,3325.7,1.50308]
[1641463630883,1.85076655,3325.8,3325.7,1.50308]
[1641463631116,0.00341054,3325.8,3325.5,2.2548]
[1641463631316,0.00341054,3325.8,3325.6,0.03235244]
[1641463631515,0.00284212,3325.7,3325.6,0.03235244]
[1641463632219,0.66484,3326.0,3325.6,0.03235244]
[1641463632220,0.66484,3326.0,3325.7,6.43713494]
[1641463632416,0.66484,3326.0,3325.9,0.67292813]
[1641463632619,1.44492874,3326.5,3326.0,9.05]
[1641463632820,1.44492874,3326.9,3326.4,1.11721935]
[1641463633018,1.44492874,3326.9,3326.6,1.5027]
[1641463633218,2.01888773,3326.7,3326.6,1.5027]
[1641463633418,1.44492874,3326.9,3326.6,1.5027]
[1641463633618,0.00568423,3326.7,3326.6,1.5027]
[1641463634867,0.00568423,3326.7,3326.1,2.25453]
[1641463635062,0.00568423,3326.7,3325.9,1.0]
[1641463635268,0.00568423,3326.7,3325.7,2.03697706]
[1641463635269,0.00511581,3326.6,3325.7,2.03697706]
[1641463635664,1.78967811,3325.8,3325.7,2.03697706]
[1641463636063,1.78967811,3325.8,3325.3,1.50338]
[1641463636465,1.78967811,3325.8,3325.4,0.00170527]
[1641463637266,2.94336323,3325.7,3325.4,0.00170527]
[1641463637867,2.94336323,3325.7,3325.4,1.50509527]
[1641463638064,0.00454739,3326.5,3325.5,0.0309096]
[1641463638065,3.68784739,3326.5,3325.5,0.0309096]
[1641463638264,0.00454739,3326.5,3325.5,0.00113685]
[1641463638464,0.00397896,3326.4,3325.5,1.10725283]
[1641463638724,0.00397896,3326.4,3325.5,1.14598569]
[1641463638920,1.71179008,3326.2,3325.5,1.14598569]
[1641463639120,0.00341054,3326.3,3325.5,1.14598569]
[1641463639121,0.00341054,3326.3,3325.9,0.75162]
[1641463639322,0.00227369,3326.1,3325.9,0.75162]
[1641463639523,0.00284212,3326.2,3325.9,0.75162]
[1641463639724,0.01377316,3327.2,3326.6,1.41687834]
[1641463639922,0.51210959,3327.6,3326.2,3.44763217]
[1641463639923,0.01210959,3327.6,3326.2,3.44763217]
[1641463640125,0.01210959,3327.6,3326.1,1.0]
[1641463640126,2.02832634,3326.9,3326.1,1.0]
[1641463640321,2.02832634,3326.9,3326.1,1.03178166]
[1641463640523,0.00625266,3326.8,3326.1,1.03178166]
[1641463640925,0.75152,3327.5,3326.7,0.75146]
[1641463641328,0.00852635,3327.2,3326.7,0.75146]
[1641463641523,0.00852635,3327.2,3326.4,1.03012464]
[1641463641726,0.00795793,3327.1,3326.4,1.03012464]
[1641463641924,0.00795793,3327.1,3326.9,0.7514]
[1641463642127,0.01206075,3328.2,3326.9,0.7514]
[1641463642128,0.0073895,3327.0,3326.9,0.7514]
[1641463642365,0.0073895,3327.0,3326.9,1.0514]
[1641463642561,0.0073895,3327.0,3326.9,2.0514]
[1641463642763,0.0073895,3327.0,3326.9,1.0514]
[1641463642963,0.0073895,3327.0,3326.9,2.0514]
[1641463643161,0.0073895,3327.0,3326.9,3.55399]
[1641463643762,0.0073895,3327.0,3326.9,4.77512092]
[1641463643963,0.0073895,3327.0,3326.9,5.13612092]
[1641463644263,0.0073895,3327.0,3326.9,8.68612092]
[1641463644463,0.0073895,3327.0,3326.9,13.91617973]
[1641463644666,3.7288,3328.3,3327.1,1.50232]
[1641463644863,3.7288,3328.3,3327.2,0.75114]
[1641463645064,2.18059,3327.3,3327.2,16.92684097]
[1641463645267,6.17,3328.8,3327.3,1.31941]
[1641463645464,4e-05,3328.0,3327.8,1.50185]
[1641463645665,6.17,3328.8,3328.5,1.40642509]
[1641463645865,6.17,3328.8,3328.7,0.75086]
[1641463646122,6.17,3328.8,3328.7,1.11186]
[1641463646317,0.18896728,3329.7,3329.2,1.32282891]
[1641463646518,0.18896728,3329.7,3329.2,2.82428891]
[1641463646716,0.15374629,3329.7,3329.5,0.75073]
[1641463647319,0.15374629,3329.7,3329.3,1.00170527]
[1641463647716,0.15374629,3329.7,3329.4,0.00113684]
[1641463648120,0.15374629,3329.7,3328.9,1.50146]
[1641463648121,13.0622045,3329.6,3328.2,6.01069229]
[1641463648318,14.76338921,3329.6,3328.4,3.5]
[1641463649217,1.71338921,3329.6,3328.4,3.5]
[1641463649418,1.70118471,3329.6,3328.4,3.5]
[1641463650265,1.70118471,3329.6,3328.4,3.8]
[1641463650867,1.70118471,3329.6,3328.4,3.5]
[1641463650868,0.01251771,3329.5,3328.4,3.5]
[1641463651065,0.03293972,3328.7,3328.4,3.5]
[1641463651869,0.03293972,3328.7,3328.4,4.25095]
[1641463652165,0.03293972,3328.7,3328.5,1.0]
[1641463652370,0.03293972,3328.7,3328.5,1.03602148]
[1641463652567,0.03293972,3328.7,3328.6,0.00454739]
[1641463655118,0.03293972,3328.7,3328.6,17.33454739]
[1641463655318,0.00113684,3329.6,3328.9,2.96894394]
[1641463655519,0.00113684,3329.6,3328.9,1.70027623]
[1641463655722,0.00113684,3329.6,3329.0,0.0022737]
[1641463656218,0.00113684,3329.6,3329.0,18.72377064]
[1641463656618,0.00113684,3329.6,3329.1,0.00170527]
[1641463656820,0.00113684,3329.6,3329.3,1.32615488]
[1641463657019,0.33124852,3330.8,3330.4,1.24068382]
[1641463657221,0.33124852,3330.8,3330.3,0.361]
[1641463658373,0.33124852,3330.8,3329.4,1.0374782]
[1641463658571,0.33124852,3330.8,3329.4,0.0374782]
[1641463658772,0.33124852,3330.8,3329.5,3.53977141]
[1641463658973,0.33124852,3330.8,3330.2,0.01268942]
[1641463659173,0.33124852,3330.8,3329.6,2.89308286]
[1641463659174,0.33124852,3330.8,3330.0,19.44371686]
[1641463659373,0.33124852,3330.8,3330.0,1.89643324]
[1641463659572,0.33124852,3330.8,3330.0,0.361]
[1641463660473,0.33124852,3330.8,3330.1,1.2760251]
[1641463660674,0.33124852,3330.8,3330.1,0.78647215]
[1641463660874,0.33124852,3330.8,3330.1,1.08647215]
[1641463661119,0.33124852,3330.8,3329.5,3.5]
[1641463661322,0.361,3330.7,3329.5,3.5]
[1641463661720,0.00568424,3330.6,3329.6,0.03130775]
[1641463662120,0.00511582,3330.5,3329.6,0.03130775]
[1641463662522,0.75086,3330.7,3329.6,0.03130775]
[1641463662523,0.00454739,3330.4,3329.6,0.03130775]
[1641463662720,0.00454739,3330.4,3329.4,2.25144297]
[1641463662920,0.75086,3330.7,3329.4,2.25144297]
[1641463662921,0.00397897,3330.3,3329.4,2.25144297]
[1641463663322,0.00341055,3330.2,3329.4,2.25144297]
[1641463663520,0.00341055,3330.2,3329.5,17.33]
[1641463663721,0.00284212,3330.1,3329.4,3.00219297]
[1641463663921,0.00284212,3330.1,3329.4,3.53284985]
[1641463664120,0.0022737,3330.0,3329.4,3.53284985]
[1641463664621,0.75083,3330.4,3329.4,3.53284985]
[1641463664622,0.00170527,3329.9,3329.4,3.53284985]
[1641463665063,0.00113685,3329.8,3329.4,3.53284985]
[1641463665262,0.00113685,3329.8,3329.7,10.24401471]
[1641463665459,0.0022737,3330.0,3329.7,13.55316766]
[1641463665659,0.33124852,3330.8,3329.7,1.67619052]
[1641463665660,0.00113685,3329.8,3329.7,1.67619052]
[1641463665858,0.00170527,3329.9,3329.7,1.67619052]
[1641463666059,0.00113685,3329.8,3329.7,2.03719052]
[1641463666259,0.00113685,3329.8,3329.7,3.67721656]
[1641463666459,0.00113685,3329.8,3329.7,7.17721656]
[1641463666660,0.00113685,3329.8,3329.7,9.68073785]
[1641463667264,0.00113685,3329.8,3329.7,8.04071181]
[1641463667465,0.00113685,3329.8,3329.7,8.79264157]
[1641463667663,0.00113685,3329.8,3329.7,7.29143157]
[1641463667961,0.00113685,3329.8,3329.7,7.25694447]
[1641463668361,0.00113685,3329.8,3329.7,3.861]
[1641463668819,0.00113685,3329.8,3329.7,3.5]
[1641463669017,0.00113685,3329.8,3329.4,0.00113684]
[1641463670224,0.00113685,3329.8,3328.9,0.361]
[1641463670419,0.00170527,3329.7,3328.9,0.361]
[1641463670621,0.00170527,3329.7,3329.0,0.0022737]
[1641463670822,0.00113684,3329.6,3329.0,0.0022737]
[1641463671019,0.00113684,3329.6,3329.0,0.03730322]
[1641463671225,0.7508,3330.5,3329.2,1.07586063]
[1641463671226,2.27562597,3329.9,3329.2,1.07586063]
[1641463671421,2.27562597,3329.9,3329.2,1.11396054]
[1641463671621,0.00227369,3329.8,3329.2,1.11396054]
[1641463672020,0.00170527,3329.7,3329.1,0.00170527]
[1641463672485,2.27562597,3329.9,3328.6,0.03886514]
[1641463672486,9.05,3329.5,3328.6,0.03886514]
[1641463672682,9.05,3329.5,3328.3,0.78343828]
[1641463672886,0.00170527,3329.4,3328.7,0.0022737]
[1641463673084,2.21638926,3329.2,3328.7,0.0022737]
[1641463673282,0.00113684,3329.3,3328.7,1.05053003]
[1641463673483,0.00113684,3329.3,3328.7,1.08398453]
[1641463673783,0.00397896,3329.8,3328.8,0.00170527]
[1641463674184,0.00341054,3329.7,3328.8,0.00170527]
[1641463674383,1.72126281,3329.7,3328.8,0.00170527]
[1641463674584,0.00284211,3329.6,3328.8,0.00170527]
[1641463674985,0.00227369,3329.5,3328.9,1.2765296]
[1641463675184,0.00227369,3329.5,3328.9,1.30889172]
[1641463675387,1.71785227,3329.7,3328.9,1.30889172]
[1641463675388,0.00170527,3329.4,3328.9,1.30889172]
[1641463675587,0.00170527,3329.4,3328.9,0.55798172]
[1641463675786,1.71785227,3329.7,3329.2,1.32822373]
[1641463675787,0.00113684,3329.3,3329.2,1.32822373]
[1641463675987,0.00113684,3329.3,3329.2,1.36102472]
[1641463676223,0.00113684,3329.3,3329.2,2.11189472]
[1641463676819,0.00113684,3329.3,3329.2,9.42211211]
[1641463677021,0.33124852,3330.8,3329.9,1.1140341]
[1641463677221,0.33124852,3330.8,3330.2,0.75064]
[1641463678021,0.33124852,3330.8,3330.2,1.05064]
[1641463678221,1.69503851,3330.6,3329.9,2.6153041]
[1641463678419,1.69503851,3330.6,3329.9,1.80127]
[1641463678621,0.00682109,3330.5,3329.9,1.80127]
[1641463678819,0.00682109,3330.5,3329.9,1.54121999]
[1641463679021,1.69503851,3330.6,3329.0,0.03802694]
[1641463679022,0.00625266,3330.4,3329.0,0.03802694]
[1641463679223,0.00625266,3330.4,3328.6,0.361]
[1641463679224,0.01255057,3330.3,3328.9,1.50176]
[1641463679422,0.01823481,3330.3,3329.1,0.75202684]
[1641463679621,0.00511582,3330.2,3329.1,0.75089]
[1641463680078,0.00454739,3330.1,3329.1,0.78746596]
[1641463680276,0.00454739,3330.1,3329.1,1.8456704]
[1641463680476,0.00397897,3330.0,3329.1,1.8456704]
[1641463680682,1.59904022,3329.9,3329.1,1.8456704]
[1641463680877,0.00341054,3329.9,3329.1,1.8456704]
[1641463681078,0.00284212,3329.8,3329.1,1.8456704]
[1641463681277,0.00284212,3329.8,3329.3,0.75086]
[1641463681475,0.75088,3330.0,3329.3,0.75086]
[1641463681476,0.0022737,3329.7,3329.3,0.75086]
[1641463681877,0.00170527,3329.6,3329.3,0.75086]
[1641463682078,0.00170527,3329.6,3329.0,0.03838704]
[1641463682277,0.00113685,3329.5,3329.1,0.5256041]
[1641463682577,0.00397897,3330.0,3329.1,0.52674094]
[1641463682777,0.00397897,3330.0,3329.4,3.91492003]
[1641463682977,1.50181,3330.1,3329.4,3.91492003]
[1641463682978,0.00341054,3329.9,3329.4,3.91492003]
[1641463683378,0.00284212,3329.8,3329.4,3.91492003]
[1641463683611,0.00284212,3329.8,3329.3,5.25663976]
[1641463683811,0.0022737,3329.7,3329.3,5.25663976]
[1641463684211,1.50181,3330.1,3329.3,5.25663976]
[1641463684212,0.00170527,3329.6,3329.3,5.25663976]
[1641463684412,0.00170527,3329.6,3329.4,0.75084]
[1641463684614,0.00113685,3329.5,3329.4,19.12051547]
[1641463684818,3.89975063,3331.2,3329.9,1.26320183]
[1641463685013,4.3018,3331.6,3330.0,1.0508197]
[1641463685014,3.89975063,3331.3,3330.0,1.0508197]
[1641463685211,0.00682108,3330.7,3330.1,0.03924503]
[1641463685612,1.62486126,3330.6,3329.9,1.3]
[1641463685817,1.62486126,3330.6,3329.9,0.3]
[1641463686112,0.00568424,3330.5,3330.0,7.31098846]
[1641463686611,0.00511581,3330.4,3330.0,7.31098846]
[1641463686814,0.00511581,3330.4,3329.8,7.31098846]
[1641463687012,0.00454739,3330.3,3329.9,1.50134]
[1641463687213,0.00454739,3330.3,3329.8,7.31098846]
[1641463687468,1.72057046,3330.1,3329.9,0.15996943]
[1641463687668,1.72057046,3330.1,3329.8,0.15996943]
[1641463687872,0.00284212,3330.0,3329.8,0.15996943]
[1641463688267,0.00227369,3329.9,3329.8,0.15996943]
[1641463689067,1.72057046,3330.1,3329.8,3.55603786]
[1641463689068,0.72284415,3330.1,3329.8,3.55603786]
[1641463690270,0.72284415,3330.1,3329.8,0.15996943]
[1641463691426,0.72284415,3330.1,3329.8,3.55603786]
[1641463692225,0.72284415,3330.1,3329.8,0.15996943]
[1641463692626,0.72284415,3330.1,3329.7,0.15996943]
[1641463693627,0.72284415,3330.1,3329.9,0.15996943]
[1641463694328,0.72284415,3330.1,3330.0,3.55603786]
[1641463694737,0.723981,3330.1,3330.0,3.55603786]
[1641463698922,0.00113685,3330.1,3330.0,3.5928156]
[1641463699226,0.00113685,3330.1,3330.0,4.5928156]
[1641463699822,0.00113685,3330.1,3330.0,6.63003318]
[1641463700021,0.00113685,3330.1,3330.0,7.09459544]
[1641463700222,0.00113685,3330.1,3330.0,5.59325544]
[1641463700624,0.00113685,3330.1,3330.0,5.62781159]
[1641463700824,0.00113685,3330.1,3330.0,5.59325544]
[1641463701224,0.00113685,3330.1,3330.0,3.55603786]
[1641463705077,0.00113685,3330.1,3330.0,4.30679786]
[1641463705574,0.00113685,3330.1,3330.0,4.34652716]
[1641463706321,0.00113685,3330.1,3330.0,5.34652716]
[1641463706523,0.00113685,3330.1,3330.0,22.67652716]
[1641463706721,0.00113685,3330.1,3330.0,5.34652716]
[1641463706924,0.00113685,3330.1,3330.0,5.33652716]
[1641463707323,3.35919912,3331.8,3331.6,0.15996943]
[1641463707522,3.35919912,3331.8,3331.7,0.91030943]
[1641463707723,3.35919912,3331.8,3331.7,0.94228916]
[1641463707923,0.47121627,3331.8,3331.7,0.94228916]
[1641463708127,0.47121627,3331.8,3331.7,0.15996943]
[1641463709123,6.79540078,3331.9,3331.7,0.15996943]
[1641463709527,2.87822,3331.9,3331.7,3.55603786]
[1641463709964,2.87822,3331.9,3331.8,0.94566493]
[1641463709965,0.61484,3331.9,3331.8,0.94566493]
[1641463710366,0.62507162,3331.9,3331.8,3.39438723]
[1641463710569,4.97507162,3331.9,3331.8,3.39438723]
[1641463710766,0.62507162,3331.9,3331.8,3.39438723]
[1641463711367,2.335366,3331.9,3331.6,0.5252744]
[1641463711570,2.335366,3331.9,3331.6,0.55896813]
[1641463711571,0.50207162,3331.9,3331.6,0.55896813]
[1641463711768,0.0096632,3331.8,3331.6,1.50059]
[1641463711968,0.0096632,3331.8,3331.6,1.53588161]
[1641463712171,0.00909478,3331.7,3331.6,1.53588161]
[1641463713270,0.00909478,3331.7,3331.6,1.83588161]
[1641463713471,0.00909478,3331.7,3331.6,1.53588161]
[1641463713714,0.00909478,3331.7,3331.6,2.52989361]
[1641463713915,0.00909478,3331.7,3331.6,1.82989361]
[1641463714116,0.00909478,3331.7,3331.6,20.15989361]
[1641463714315,0.49184,3331.9,3331.8,0.78556131]
[1641463714520,0.49184,3331.9,3331.8,18.11556131]
[1641463714722,0.49297684,3331.9,3331.8,18.11556131]
[1641463714916,7.47352976,3332.0,3331.9,1.35110487]
[1641463715116,2.23642976,3332.0,3331.9,20.41310487]
[1641463715316,6.17,3332.9,3332.7,1.31288306]
[1641463715518,6.17,3332.9,3332.3,0.432]
[1641463715718,6.17,3332.9,3332.8,0.75]
[1641463715917,6.17,3332.9,3332.8,0.78605807]
[1641463716118,6.17568424,3332.9,3332.8,1.08605807]
[1641463716919,6.17568424,3332.9,3332.8,0.78605807]
[1641463718775,6.17568424,3332.9,3332.8,1.08605807]
[1641463719777,6.17568424,3332.9,3332.8,0.78605807]
[1641463720182,0.00568424,3332.9,3332.8,0.78605807]
[1641463720378,0.08786352,3333.0,3332.8,0.78605807]
[1641463720578,0.08786352,3333.0,3332.8,0.75]
[1641463720778,0.08786352,3333.0,3332.2,2.03660974]
[1641463720978,0.08786352,3333.0,3332.1,0.04008302]
[1641463720979,0.10061253,3333.0,3332.1,0.04008302]
[1641463721248,0.10061253,3333.0,3332.3,0.00341054]
[1641463721646,0.10061253,3333.0,3332.1,0.00454739]
[1641463721847,1.365921,3333.1,3332.1,0.75024]
[1641463722047,0.01271055,3332.9,3332.4,0.9002704]
[1641463722448,0.01271055,3332.9,3332.5,0.0022737]
[1641463723348,1.366141,3333.1,3332.5,0.03285055]
[1641463723548,0.615811,3333.1,3332.5,1.25999172]
[1641463723750,0.615811,3333.1,3332.6,0.00170527]
[1641463724349,0.615811,3333.1,3332.9,0.78105932]
[1641463724750,0.615811,3333.1,3332.9,1.23111602]
[1641463726579,0.615811,3333.1,3332.9,1.2001267]
[1641463726777,0.615811,3333.1,3332.9,1.23819313]
[1641463727178,2.59305444,3333.1,3332.9,0.4500567]
[1641463727979,2.59305444,3333.1,3332.7,0.9001873]
[1641463728180,2.59305444,3333.1,3332.6,0.00170527]
[1641463728628,0.01246761,3333.0,3332.4,0.00284212]
[1641463728827,0.01246761,3333.0,3332.5,0.0022737]
[1641463729030,2.00736446,3332.6,3332.5,0.0022737]
[1641463729428,2.00736446,3332.6,3332.1,0.00454739]
[1641463729628,2.00736446,3332.6,3332.4,0.4501374]
[1641463730029,2.00736446,3332.6,3332.5,0.0022737]
[1641463730731,2.00736446,3332.6,3332.5,3.39637477]
[1641463730931,0.50712446,3332.7,3332.5,3.39637477]
[1641463731134,2.25091,3332.8,3332.5,3.39637477]
[1641463731330,2.25091,3332.8,3332.6,0.00170527]
[1641463732130,7.08698135,3332.7,3332.6,0.00170527]
[1641463732874,2.25091,3332.8,3332.6,0.00170527]
[1641463733478,2.25091,3332.8,3332.5,0.0022737]
[1641463733677,6.67868691,3332.6,3332.5,0.0022737]
[1641463733877,6.67868691,3332.6,3332.5,3.39633656]
[1641463734278,0.34996344,3332.5,3331.8,2.03660974]
[1641463734477,0.01227303,3331.9,3330.8,5.09109429]
[1641463734879,2.07700189,3331.4,3330.8,5.12379843]
[1641463735083,2.07700189,3331.4,3330.8,5.09109429]
[1641463735379,6.7,3331.3,3330.8,5.09109429]
[1641463735583,2.07700189,3331.4,3330.8,5.12817383]
[1641463735779,2.07700189,3331.4,3330.9,0.00227369]
[1641463736235,0.75065,3331.6,3330.9,0.00227369]
[1641463736535,0.00113685,3331.5,3331.2,0.4503309]
[1641463737539,0.00113685,3331.5,3331.4,0.03885316]
[1641463737938,4.96114684,3331.4,3331.3,0.9005794]
[1641463740473,4.96114684,3331.4,3331.2,0.4502831]
[1641463740673,4.96114684,3331.4,3330.9,0.00227369]
[1641463741074,4.96114684,3331.4,3330.8,0.00284211]
[1641463741276,4.96114684,3331.4,3331.0,0.4503868]
[1641463741475,4.96114684,3331.4,3330.6,1.3508696]
[1641463741476,13.05,3331.2,3330.6,1.3508696]
[1641463741678,13.05,3331.2,3329.9,5.09109429]
[1641463741679,13.36225761,3331.2,3329.9,5.09109429]
[1641463741977,1.36170527,3331.1,3330.0,0.00454739]
[1641463742378,0.00113684,3331.0,3330.0,0.00454739]
[1641463742578,0.36113684,3331.0,3330.0,0.00454739]
[1641463742778,13.05,3330.9,3329.3,2.6]
[1641463742979,17.63,3330.8,3329.3,2.6]
[1641463743178,17.63,3330.8,3329.4,0.00341054]
[1641463743179,1.30454739,3330.8,3329.4,0.00341054]
[1641463743382,0.00397896,3330.7,3329.4,0.00341054]
[1641463743829,1.50533054,3330.6,3329.4,0.00341054]
[1641463744029,0.00341054,3330.6,3329.4,0.00341054]
[1641463744229,2.80194,3330.8,3329.4,0.00341054]
[1641463744230,0.00284212,3330.5,3329.4,0.00341054]
[1641463744630,1.50403582,3330.4,3329.6,2.03769491]
[1641463745030,0.00170527,3330.3,3329.7,0.00170527]
[1641463745429,3.79868342,3330.4,3329.7,0.00170527]
[1641463745430,0.00113685,3330.2,3329.7,0.00170527]
[1641463745637,0.00113685,3330.2,3329.7,0.45225167]
[1641463745831,0.75262527,3330.3,3329.7,0.00170527]
[1641463746133,0.00113685,3330.2,3329.7,0.00170527]
[1641463746334,0.75208685,3330.2,3329.7,0.00170527]
[1641463746731,0.75208685,3330.2,3330.0,2.03769491]
[1641463746936,0.75208685,3330.2,3329.7,0.00170527]
[1641463746937,6.50091,3330.1,3329.7,0.00170527]
[1641463747367,0.75091,3330.1,3329.6,0.0022737]
[1641463747569,0.75091,3330.1,3329.8,1.12220814]
[1641463747969,0.00113685,3330.2,3329.8,1.12220814]
[1641463748169,0.00113685,3330.2,3329.9,0.75068]
[1641463748369,0.00113685,3330.2,3329.9,0.78124943]
[1641463748971,0.00113685,3330.2,3329.9,1.08124943]
[1641463749570,0.00113685,3330.2,3329.9,2.08124943]
[1641463749872,0.00113685,3330.2,3329.9,1.78124943]
[1641463750072,0.00113685,3330.2,3330.1,0.03806621]
[1641463750870,0.00113685,3330.2,3329.9,0.4504564]
[1641463753327,1.50279685,3330.2,3329.9,0.4504564]
[1641463753627,3.41587179,3330.2,3329.9,0.4504564]
[1641463753828,3.41587179,3330.2,3329.7,0.93781603]
[1641463754031,3.41587179,3330.2,3329.6,0.0022737]
[1641463754032,3.71587179,3330.2,3329.6,0.0022737]
[1641463754228,3.71587179,3330.2,3329.8,0.00113685]
[1641463754429,3.71587179,3330.2,3329.5,0.00284212]
[1641463754974,0.31989372,3330.1,3329.5,0.00284212]
[1641463755677,0.31989372,3330.1,3329.5,3.0788629]
[1641463755875,0.31989372,3330.1,3329.5,3.11448605]
[1641463756077,0.31989372,3330.1,3329.6,1.04552873]
[1641463756278,0.31989372,3330.1,3329.6,0.0022737]
[1641463756477,0.31989372,3330.1,3329.8,0.4505357]
[1641463756976,0.31989372,3330.1,3329.9,2.02658844]
[1641463757177,0.31989372,3330.1,3329.9,2.05684753]
[1641463757378,0.31989372,3330.1,3329.9,2.05994856]
[1641463757577,0.31989372,3330.1,3329.9,2.05930672]
[1641463757978,0.31989372,3330.1,3329.9,3.05930672]
[1641463758183,3.55607741,3330.2,3330.1,13.47874692]
[1641463758380,2.98240298,3331.1,3330.5,0.47874692]
[1641463758632,4.00469901,3331.1,3331.0,1.89721603]
[1641463758832,4.00469901,3331.1,3331.0,3.82069247]
[1641463759034,4.00469901,3331.1,3331.0,5.12069247]
[1641463759035,4.00981482,3331.1,3331.0,5.12069247]
[1641463759233,1.99389253,3331.9,3331.3,0.47874692]
[1641463759436,6.70419728,3332.1,3331.3,0.83874692]
[1641463759634,0.00397896,3331.8,3331.3,2.17587016]
[1641463759832,0.00397896,3331.8,3331.4,0.51646505]
[1641463760034,0.00341054,3331.7,3331.4,0.47874692]
[1641463760234,0.00341054,3331.7,3331.6,2.5905005]
[1641463760534,4.04892885,3332.8,3332.5,0.3751299]
[1641463760733,12.88655253,3333.0,3332.6,0.47874692]
[1641463760934,13.00909477,3332.7,3332.6,0.47874692]
[1641463761235,12.98609477,3332.7,3332.6,0.47874692]
[1641463762578,0.75037,3332.8,3332.6,0.47874692]
[1641463763879,0.75037,3332.8,3332.0,0.03538829]
[1641463764080,1.50066,3332.8,3331.0,0.93560956]
[1641463764281,1.50066,3332.8,3332.1,0.00341054]
[1641463764481,1.50066,3332.8,3331.0,1.23560956]
[1641463764482,1.50066,3332.8,3331.8,0.03527377]
[1641463764685,1.50066,3332.8,3331.6,0.03275173]
[1641463764982,1.50066,3332.8,3332.2,1.42183856]
[1641463765382,1.50066,3332.8,3332.3,0.00227369]
[1641463765882,1.50066,3332.8,3332.4,0.75017]
[1641463766134,1.50066,3332.8,3332.4,0.78049962]
[1641463766339,1.50066,3332.8,3332.5,0.00113685]
[1641463770974,0.615811,3333.1,3332.7,1.41160041]
[1641463771375,0.615811,3333.1,3333.0,7.24996]
[1641463771576,0.615811,3333.1,3333.0,8.64212315]
[1641463771776,0.6180847,3333.1,3333.0,8.64212315]
[1641463771977,1.68583203,3333.6,3333.1,6.2]
[1641463772179,10.88260823,3333.9,3333.2,1.03987118]
[1641463772180,6.83250541,3333.9,3333.2,1.03987118]
[1641463772380,6.83250541,3333.9,3333.7,1.08257094]
[1641463772583,4.57809111,3333.9,3333.7,2.08257094]
[1641463772981,0.75809225,3334.2,3333.8,1.76355285]
[1641463773179,0.75809225,3334.2,3333.9,1.32062982]
[1641463773381,0.75809225,3334.2,3333.9,1.35525419]
[1641463773382,0.00568423,3334.1,3333.9,1.35525419]
[1641463773630,0.00568423,3334.1,3334.0,1.53357415]
[1641463773830,0.75809225,3334.2,3334.0,1.53357415]
[1641463774033,0.00568423,3334.1,3334.0,1.83345805]
[1641463774730,0.00568423,3334.1,3334.0,1.53357415]
[1641463774931,0.00568423,3334.1,3334.0,2.53357415]
[1641463775133,0.00568423,3334.1,3334.0,1.53357415]
[1641463775534,0.00568423,3334.1,3333.9,2.00928989]
[1641463775733,1.75237812,3334.1,3333.9,2.00928989]
[1641463775931,0.75809225,3334.2,3333.9,2.00928989]
[1641463775932,13.00511581,3334.0,3333.9,2.00928989]
[1641463776133,13.00511581,3334.0,3333.9,0.03376025]